fUST/lending_fUST_20250603
["ID","MTS","AMOUNT","RATE_DAILY","PERIOD"]
[363820590,1748886642199,-2365.3,0.00019494,2]
[363820592,1748886642208,-1032.62049403,0.00019555,2]
[363820594,1748886642219,-693.345,0.00019612,2]
[363820596,1748886642228,-173.12461627,0.00019612,2]
[363820598,1748886642238,-587.0,0.0001963,2]
[363820600,1748886642247,-151.0,0.00019726,2]
[363820602,1748886642258,-151.0,0.00019726,2]
[363820617,1748886642267,-448.21,0.00019726,2]
[363820619,1748886642400,-440.0,0.00019726,2]
[363820621,1748886642410,-440.0,0.00019726,2]
[363820623,1748886642419,-440.0,0.00019726,2]
[363820625,1748886642429,-440.0,0.00019726,2]
[363820627,1748886642443,-671.82,0.00019726,2]
[363820629,1748886642454,-744.98,0.00019726,2]
[363820632,1748886642464,-440.0,0.00019726,2]
[363820634,1748886642476,-440.0,0.00019726,2]
[363820636,1748886642487,-461.48,0.00019726,2]
[363820638,1748886642499,-440.0,0.00019726,2]
[363820640,1748886642508,-539.56,0.00019726,2]
[363820642,1748886642520,-440.0,0.00019726,2]
[363820644,1748886642530,-1400.0,0.00019766,2]
[363820646,1748886642539,-1032.62049403,0.00019797,2]
[363820648,1748886642549,-151.0,0.0002,2]
[363820650,1748886642558,-151.0,0.0002,2]
[363820652,1748886642568,-151.0,0.0002,2]
[363820654,1748886642578,-151.0,0.0002,2]
[363820656,1748886642588,-199.826638,0.0002,2]
[363820658,1748886642598,-448.21,0.0002,2]
[363820659,1748886642608,-440.0,0.0002,2]
[363820661,1748886642617,-440.0,0.0002,2]
[363820664,1748886642627,-440.0,0.0002,2]
[363820665,1748886642636,-440.0,0.0002,2]
[363820667,1748886642646,-671.82,0.0002,2]
[363820668,1748886642655,-744.98,0.0002,2]
[363820669,1748886642664,-440.0,0.0002,2]
[363820670,1748886642675,-440.0,0.0002,2]
[363820671,1748886642684,-440.0,0.0002,2]
[363820672,1748886642694,-539.56,0.0002,2]
[363820673,1748886642703,-440.0,0.0002,2]
[363820674,1748886642713,-1032.62049403,0.00020038,2]
[363820675,1748886642722,-348.769634,0.00020187,2]
[363820676,1748886642731,-151.0,0.00020273,2]
[363820677,1748886642741,-151.0,0.00020273,2]
[363820678,1748886642750,-448.21,0.00020273,2]
[363820679,1748886642759,-440.0,0.00020273,2]
[363820680,1748886642768,-440.0,0.00020273,2]
[363820681,1748886642779,-440.0,0.00020273,2]
[363820682,1748886642789,-440.0,0.00020273,2]
[363820683,1748886642799,-671.82,0.00020273,2]
[363820684,1748886642809,-744.98,0.00020273,2]
[363820685,1748886642818,-440.0,0.00020273,2]
[363820686,1748886642828,-440.0,0.00020273,2]
[363820688,1748886642838,-440.0,0.00020273,2]
[363820690,1748886642847,-539.56,0.00020273,2]
[363820692,1748886642857,-440.0,0.00020273,2]
[363820694,1748886642868,-1032.62049403,0.00020279,3]
[363820696,1748886642878,-500.0,0.0002029,2]
[363820698,1748886642887,-3153.73,0.00020342,2]
[363820700,1748886642896,-204.54873375,0.000205,2]
[363820702,1748886642906,-1032.62049403,0.00020521,3]
[363820704,1748886642916,-500.0,0.00020547,2]
[363820705,1748886642925,-448.21,0.00020547,2]
[363820707,1748886642935,-400.0,0.00020547,2]
[363820709,1748886642944,-440.0,0.00020547,2]
[363820711,1748886642954,-440.0,0.00020547,2]
[363820713,1748886642963,-440.0,0.00020547,2]
[363820715,1748886642973,-671.82,0.00020547,2]
[363820716,1748886642983,-744.98,0.00020547,2]
[363820717,1748886642992,-440.0,0.00020547,2]
[363820718,1748886643002,-440.0,0.00020547,2]
[363820719,1748886643012,-440.0,0.00020547,2]
[363820720,1748886643022,-539.56,0.00020547,2]
[363820721,1748886643031,-440.0,0.00020547,2]
[363820723,1748886643041,-165.841972,0.000206,2]
[363820725,1748886643050,-154.617799,0.000206,2]
[363820726,1748886643059,-692.1,0.000206,2]
[363820728,1748886643069,-151.0,0.000206,2]
[363820730,1748886643078,-199.826638,0.000206,2]
[363820732,1748886643087,-250.0,0.00020667,2]
[363820734,1748886643097,-1032.62049403,0.00020762,3]
[363820736,1748886643106,-448.21,0.00020821,2]
[363820738,1748886643115,-253.42185565,0.00020821,2]
[363820741,1748886643124,-440.0,0.00020821,2]
[363820744,1748886643134,-440.0,0.00020821,2]
[363820748,1748886643143,-671.82,0.00020821,2]
[363820751,1748886643153,-744.98,0.00020821,2]
[363820754,1748886643164,-440.0,0.00020821,2]
[363820757,1748886643173,-440.0,0.00020821,2]
[363820760,1748886643183,-440.0,0.00020821,2]
[363820762,1748886643193,-539.56,0.00020821,2]
[363820765,1748886643202,-440.0,0.00020821,2]
[363820767,1748886643212,-1000.0,0.00020838,2]
[363820769,1748886643222,-247.651446,0.00020862,2]
[363820771,1748886643231,-199.826638,0.00020862,2]
[363820773,1748886643241,-1400.0,0.00020862,2]
[363820775,1748886643250,-1644.29,0.000209,2]
[363820777,1748886643259,-1032.62049403,0.00021003,4]
[363820779,1748886643269,-151.0,0.00021095,2]
[363820781,1748886643278,-151.0,0.00021095,2]
[363820783,1748886643288,-500.0,0.00021095,3]
[363820785,1748886643297,-448.21,0.00021095,2]
[363820787,1748886643306,-440.0,0.00021095,2]
[363820789,1748886643316,-270.97547671,0.00021095,2]
[363820791,1748886643325,-671.82,0.00021095,2]
[363820793,1748886643335,-744.98,0.00021095,2]
[363820795,1748886643345,-440.0,0.00021095,2]
[363820797,1748886643355,-440.0,0.00021095,2]
[363820799,1748886643364,-440.0,0.00021095,2]
[363820801,1748886643374,-539.56,0.00021095,2]
[363820803,1748886643383,-440.0,0.00021095,2]
[363820806,1748886643394,-3942.16,0.0002119,2]
[363820808,1748886643404,-1032.62049403,0.00021245,4]
[363820810,1748886643415,-448.21,0.00021369,2]
[363820812,1748886643424,-440.0,0.00021369,2]
[363820814,1748886643435,-671.82,0.00021369,2]
[363820816,1748886643446,-744.98,0.00021369,2]
[363820817,1748886643457,-440.0,0.00021369,2]
[363820820,1748886643472,-440.0,0.00021369,2]
[363820821,1748886643483,-440.0,0.00021369,2]
[363820823,1748886643493,-539.56,0.00021369,2]
[363820825,1748886643502,-365.32,0.00021369,2]
[363820827,1748886643513,-823.0,0.00021452,2]
[363820829,1748886643523,-500.0,0.00021467,2]
[363820832,1748886643533,-1032.62049403,0.00021486,5]
[363820834,1748886643542,-207.4,0.00021585,2]
[363820836,1748886643552,-151.0,0.00021585,2]
[363820838,1748886643561,-151.0,0.00021585,2]
[363820839,1748886643572,-151.0,0.00021585,2]
[363820842,1748886643582,-151.0,0.00021585,2]
[363820844,1748886643592,-151.0,0.00021585,2]
[363820846,1748886643601,-500.0,0.00021585,2]
[363820848,1748886643610,-151.0,0.00021585,2]
[363820850,1748886643620,-500.0,0.00021585,2]
[363820852,1748886643629,-151.0,0.00021585,2]
[363820854,1748886643639,-500.0,0.00021585,2]
[363820856,1748886643648,-500.0,0.00021585,2]
[363820859,1748886643658,-226.76390347,0.00021585,2]
[363820862,1748886643668,-500.0,0.00021585,2]
[363820864,1748886643677,-500.0,0.00021585,2]
[363820866,1748886643687,-500.0,0.00021585,2]
[363820868,1748886643696,-500.0,0.00021585,2]
[363820870,1748886643705,-500.0,0.00021585,2]
[363820872,1748886643715,-500.0,0.00021585,2]
[363820874,1748886643728,-500.0,0.00021585,2]
[363820876,1748886643738,-500.0,0.00021585,2]
[363820878,1748886643747,-500.0,0.00021585,2]
[363820880,1748886643757,-500.0,0.00021585,2]
[363820882,1748886643766,-500.0,0.00021585,2]
[363820884,1748886643775,-500.0,0.00021585,2]
[363820886,1748886643785,-500.0,0.00021585,2]
[363820888,1748886643795,-500.0,0.00021585,2]
[363820890,1748886643804,-500.0,0.00021585,2]
[363820892,1748886643814,-500.0,0.00021585,2]
[363820894,1748886643824,-500.0,0.00021585,2]
[363820896,1748886643833,-5000.0,0.00021585,2]
[363820898,1748886643843,-500.0,0.00021585,2]
[363820900,1748886643854,-500.0,0.00021585,2]
[363820902,1748886643864,-500.0,0.00021585,2]
[363820905,1748886643874,-2424.12057977,0.00021585,2]
[363820907,1748886643884,-202.5886477,0.00021585,2]
[363820909,1748886643893,-5384.46,0.000216,2]
[363820911,1748886643903,-12668.79298183,0.00021633,10]
[363820913,1748886643914,-500.0,0.00021643,4]
[363820915,1748886643923,-448.21,0.00021643,2]
[363820917,1748886643932,-440.0,0.00021643,2]
[363820919,1748886643942,-671.82,0.00021643,2]
[363820921,1748886643951,-744.98,0.00021643,2]
[363820923,1748886643960,-440.0,0.00021643,2]
[363820925,1748886643970,-440.0,0.00021643,2]
[363820927,1748886643980,-440.0,0.00021643,2]
[363820929,1748886643990,-539.56,0.00021643,2]
[363820931,1748886643999,-1032.62049403,0.00021728,5]
[363820933,1748886644008,-199.826638,0.00021752,2]
[363820935,1748886644019,-151.0,0.000218,2]
[363820937,1748886644028,-151.0,0.000218,2]
[363820939,1748886644038,-41502.0,0.000218,2]
[363820941,1748886644047,-448.21,0.00021917,2]
[363820943,1748886644057,-527.15,0.00021917,2]
[363820945,1748886644066,-527.15,0.00021917,2]
[363820947,1748886644076,-527.15,0.00021917,2]
[363820949,1748886644086,-527.15,0.00021917,2]
[363820951,1748886644095,-527.15,0.00021917,2]
[363820953,1748886644105,-527.15,0.00021917,2]
[363820955,1748886644114,-527.15,0.00021917,2]
[363820957,1748886644123,-527.15,0.00021917,2]
[363820959,1748886644133,-527.15,0.00021917,2]
[363820961,1748886644142,-527.15,0.00021917,2]
[363820963,1748886644151,-527.15,0.00021917,2]
[363820965,1748886644162,-527.15,0.00021917,2]
[363820967,1748886644171,-527.15,0.00021917,2]
[363820969,1748886644181,-527.15,0.00021917,2]
[363820971,1748886644190,-527.15,0.00021917,2]
[363820973,1748886644200,-527.15,0.00021917,2]
[363820975,1748886644209,-527.15,0.00021917,2]
[363820977,1748886644219,-527.15,0.00021917,2]
[363820979,1748886644228,-527.15,0.00021917,2]
[363820981,1748886644237,-527.15,0.00021917,2]
[363820983,1748886644247,-527.15,0.00021917,2]
[363820985,1748886644256,-386.67164436,0.00021917,2]
[363820987,1748886644265,-500.0,0.00021917,2]
[363820989,1748886644275,-500.0,0.00021917,2]
[363820991,1748886644284,-500.0,0.00021917,2]
[363820993,1748886644294,-500.0,0.00021917,2]
[363820995,1748886644303,-500.0,0.00021917,2]
[363820997,1748886644313,-500.0,0.00021917,2]
[363820999,1748886644322,-500.0,0.00021917,2]
[363821001,1748886644333,-500.0,0.00021917,2]
[363821003,1748886644344,-500.0,0.00021917,2]
[363821005,1748886644354,-500.0,0.00021917,2]
[363821007,1748886644364,-183.04845287,0.00021917,2]
[363821009,1748886644373,-671.82,0.00021917,2]
[363821010,1748886644383,-744.98,0.00021917,2]
[363821011,1748886644393,-511.26600343,0.00021917,2]
[363821012,1748886644403,-440.0,0.00021917,2]
[363821013,1748886644413,-341.15715251,0.00021917,2]
[363821014,1748886644422,-500.0,0.00021917,2]
[363821016,1748886644432,-539.56,0.00021917,2]
[363821018,1748886644445,-323.0767398,0.00021918,7]
[363821020,1748886644455,-150.0,0.00021918,2]
[363821022,1748886644464,-1400.0,0.00021958,2]
[363821024,1748886644474,-1032.62049403,0.00021969,6]
[363821026,1748886644484,-166.975821,0.00022,7]
[363821029,1748886644495,-280.23580309,0.00022,7]
[363821031,1748886644504,-173.0,0.00022,2]
[363821033,1748886644517,-692.1,0.00022,7]
[363821035,1748886644527,-172.0,0.00022,2]
[363821037,1748886644537,-199.826638,0.00022,7]
[363821039,1748886644546,-173.0,0.00022,2]
[363821041,1748886644557,-173.0,0.00022,2]
[363821043,1748886644567,-2208.93,0.00022,2]
[363821045,1748886644577,-187.0,0.00022,2]
[363821047,1748886644586,-171.0,0.00022,2]
[363821049,1748886644596,-1000.0,0.00022015,2]
[363821051,1748886644605,-4730.6,0.00022037,2]
[363821053,1748886644615,-368705.82449,0.00022099,2]
[363821055,1748886644625,-1644.29,0.000221,7]
[363821057,1748886644634,-6804.02571148,0.0002213,2]
[363821059,1748886644643,-152.51297585,0.00022133,2]
[363821061,1748886644653,-5000.0,0.00022133,2]
[363821063,1748886644663,-199.826638,0.00022186,7]
[363821065,1748886644672,-500.0,0.00022191,5]
[363821067,1748886644681,-448.21,0.00022191,2]
[363821068,1748886644691,-527.15,0.00022191,2]
[363821070,1748886644700,-3742.59133857,0.00022191,2]
[363821072,1748886644709,-671.82,0.00022191,2]
[363821074,1748886644719,-744.98,0.00022191,2]
[363821076,1748886644728,-440.0,0.00022191,2]
[363821077,1748886644737,-539.56,0.00022191,2]
[363821080,1748886644747,-48318.36,0.000222,2]
[363821082,1748886644756,-1032.62049403,0.0002221,6]
[363821084,1748886644765,-175.581,0.0002227,2]
[363821086,1748886644775,-1032.62049403,0.00022452,7]
[363821088,1748886644784,-448.21,0.00022465,2]
[363821089,1748886644794,-527.15,0.00022465,2]
[363821091,1748886644803,-671.82,0.00022465,2]
[363821093,1748886644812,-744.98,0.00022465,2]
[363821095,1748886644822,-582.00147986,0.00022465,2]
[363821097,1748886644831,-500.0,0.00022465,2]
[363821099,1748886644841,-539.56,0.00022465,2]
[363821101,1748886644850,-159.45006171,0.00022466,2]
[363821103,1748886644859,-160.2722929,0.00022466,2]
[363821105,1748886644868,-176.5287595,0.00022466,2]
[363821107,1748886644878,-390.5657552,0.00022466,2]
[363821109,1748886644887,-154.2938119,0.00022466,2]
[363821112,1748886644898,-572.502888,0.00022466,2]
[363821114,1748886644909,-153.0,0.00022466,2]
[363821116,1748886644919,-352.9434535,0.00022466,2]
[363821117,1748886644928,-158.5152029,0.00022466,2]
[363821120,1748886644938,-572.502888,0.00022466,2]
[363821122,1748886644948,-158.5152029,0.00022466,2]
[363821124,1748886644958,-176.5287595,0.00022466,2]
[363821126,1748886644967,-153.0,0.00022466,2]
[363821128,1748886644978,-153.0,0.00022466,2]
[363821130,1748886644987,-572.502888,0.00022466,2]
[363821131,1748886644997,-176.5287595,0.00022466,2]
[363821133,1748886645007,-572.502888,0.00022466,2]
[363821135,1748886645016,-158.5152029,0.00022466,2]
[363821137,1748886645025,-158.5152029,0.00022466,2]
[363821139,1748886645035,-316.9382195,0.00022466,2]
[363821141,1748886645044,-176.5287595,0.00022466,2]
[363821143,1748886645053,-572.502888,0.00022466,2]
[363821145,1748886645063,-269.5498944,0.00022466,2]
[363821147,1748886645072,-1131.338883,0.0002254,3]
[363821149,1748886645082,-1500.0,0.00022563,2]
[363821151,1748886645092,-331.136443,0.00022603,2]
[363821153,1748886645102,-600.0,0.00022658,2]
[363821155,1748886645111,-5000.0,0.00022681,2]
[363821157,1748886645121,-1032.62049403,0.00022693,7]
[363821159,1748886645130,-500.0,0.00022711,2]
[363821161,1748886645140,-500.0,0.00022739,6]
[363821162,1748886645149,-448.4414,0.00022739,2]
[363821164,1748886645158,-527.28,0.00022739,2]
[363821166,1748886645169,-671.9,0.00022739,2]
[363821168,1748886645178,-745.00441925,0.00022739,2]
[363821170,1748886645187,-539.64,0.00022739,2]
[363821172,1748886645196,-364.4406513,0.0002274,2]
[363821174,1748886645207,-199.826638,0.000228,7]
[363821176,1748886645217,-3450.0,0.000228,2]
[363821178,1748886645226,-3450.0,0.000228,2]
[363821180,1748886645235,-3450.0,0.000228,2]
[363821182,1748886645245,-3450.0,0.000228,2]
[363821184,1748886645254,-3450.0,0.000228,2]
[363821186,1748886645263,-3450.0,0.000228,2]
[363821188,1748886645273,-3450.0,0.000228,2]
[363821191,1748886645283,-3450.0,0.000228,2]
[363821193,1748886645293,-3450.0,0.000228,2]
[363821195,1748886645303,-3450.0,0.000228,2]
[363821197,1748886645313,-151.0,0.000228,8]
[363821199,1748886645323,-5519.03,0.00022885,2]
[363821201,1748886645334,-600.0,0.00022894,2]
[363821203,1748886645344,-5384.46,0.000229,2]
[363821205,1748886645354,-1032.62049403,0.00022934,8]
[363821207,1748886645364,-215.0738,0.00022954,2]
[363821209,1748886645374,-1000.0,0.00022999,12]
[363821211,1748886645384,-199.826638,0.00023,7]
[363821213,1748886645393,-13398.0,0.00023,2]
[363821215,1748886645404,-200.0,0.00023,2]
[363821217,1748886645414,-500.0,0.00023013,2]
[363821219,1748886645423,-174.0,0.00023014,7]
[363821221,1748886645434,-174.0,0.00023014,7]
[363821223,1748886645446,-174.0,0.00023014,7]
[363821225,1748886645456,-962.0,0.00023019,2]
[363821227,1748886645466,-708.0,0.00023019,2]
[363821229,1748886645475,-2226.0,0.00023019,2]
[363821231,1748886645485,-1400.0,0.00023054,2]
[363821233,1748886645496,-500.0,0.00023071,2]
[363821235,1748886645506,-500.0,0.00023071,2]
[363821237,1748886645515,-692.1,0.000231,7]
[363821239,1748886645525,-2000.0,0.00023111,2]
[363821245,1748886645647,-153.0,0.0002315,3]
[363821246,1748886645657,-153.0,0.0002315,3]
[363821248,1748886645670,-153.0,0.0002315,3]
[363821250,1748886645681,-153.0,0.0002315,3]
[363821252,1748886645690,-153.0,0.0002315,3]
[363821254,1748886645700,-153.0,0.0002315,3]
[363821255,1748886645709,-153.0,0.0002315,3]
[363821256,1748886645719,-153.0,0.0002315,3]
[363821257,1748886645728,-153.0,0.0002315,3]
[363821258,1748886645738,-153.0,0.0002315,3]
[363821259,1748886645748,-153.0,0.0002315,3]
[363821260,1748886645758,-153.0,0.0002315,3]
[363821261,1748886645767,-153.0,0.0002315,3]
[363821262,1748886645777,-153.0,0.0002315,3]
[363821263,1748886645787,-153.0,0.0002315,3]
[363821264,1748886645796,-153.0,0.0002315,3]
[363821265,1748886645806,-153.0,0.0002315,3]
[363821266,1748886645815,-153.0,0.0002315,3]
[363821267,1748886645825,-153.0,0.0002315,3]
[363821268,1748886645834,-153.0,0.0002315,3]
[363821269,1748886645843,-153.0,0.0002315,3]
[363821270,1748886645853,-153.0,0.0002315,3]
[363821271,1748886645863,-153.0,0.0002315,3]
[363821272,1748886645872,-153.0,0.0002315,3]
[363821273,1748886645881,-153.0,0.0002315,3]
[363821274,1748886645891,-153.0,0.0002315,3]
[363821275,1748886645900,-153.0,0.0002315,3]
[363821276,1748886645910,-153.0,0.0002315,3]
[363821277,1748886645921,-153.0,0.0002315,3]
[363821278,1748886645931,-153.0,0.0002315,3]
[363821279,1748886645941,-153.0,0.0002315,3]
[363821280,1748886645950,-153.0,0.0002315,3]
[363821281,1748886645960,-153.0,0.0002315,3]
[363821282,1748886645969,-153.0,0.0002315,3]
[363821283,1748886645979,-153.0,0.0002315,3]
[363821285,1748886645988,-153.0,0.0002315,3]
[363821286,1748886645998,-153.0,0.0002315,3]
[363821287,1748886646007,-153.0,0.0002315,3]
[363821288,1748886646025,-153.0,0.0002315,3]
[363821290,1748886646038,-153.0,0.0002315,3]
[363821292,1748886646048,-153.0,0.0002315,3]
[363821294,1748886646058,-153.0,0.0002315,3]
[363821296,1748886646068,-153.0,0.0002315,3]
[363821298,1748886646078,-153.0,0.0002315,3]
[363821300,1748886646088,-153.0,0.0002315,3]
[363821302,1748886646098,-153.0,0.0002315,3]
[363821304,1748886646108,-153.0,0.0002315,3]
[363821306,1748886646118,-153.0,0.0002315,3]
[363821308,1748886646128,-153.0,0.0002315,3]
[363821309,1748886646138,-153.0,0.0002315,3]
[363821310,1748886646148,-153.0,0.0002315,3]
[363821311,1748886646158,-153.0,0.0002315,3]
[363821312,1748886646169,-153.0,0.0002315,3]
[363821313,1748886646179,-271.52524449,0.0002315,3]
[363821314,1748886646189,-170.0,0.0002315,3]
[363821315,1748886646199,-170.0,0.0002315,3]
[363821316,1748886646209,-170.0,0.0002315,3]
[363821317,1748886646219,-170.0,0.0002315,3]
[363821318,1748886646229,-170.0,0.0002315,3]
[363821319,1748886646239,-153.0,0.0002315,3]
[363821321,1748886646249,-175.59555078,0.0002315,3]
[363821323,1748886646260,-153.0,0.0002315,3]
[363821324,1748886646270,-153.0,0.0002315,3]
[363821325,1748886646280,-153.0,0.0002315,3]
[363821326,1748886646290,-153.0,0.0002315,3]
[363821328,1748886646300,-1032.62049403,0.00023176,8]
[363821330,1748886646310,-1644.29,0.000232,7]
[363821332,1748886646321,-160.0,0.000232,3]
[363821334,1748886646331,-423.56953423,0.000232,3]
[363821336,1748886646342,-12668.79298183,0.000232,3]
[363821338,1748886646351,-12668.79298183,0.000232,7]
[363821340,1748886646361,-204.54873374,0.000232,2]
[363821342,1748886646371,-229.39799938,0.000232,3]
[363821344,1748886646381,-638.0,0.000232,2]
[363821346,1748886646391,-842.5625,0.000232,3]
[363821348,1748886646401,-842.5625,0.000232,7]
[363821350,1748886646411,-160.0,0.000232,3]
[363821352,1748886646422,-160.0,0.000232,3]
[363821355,1748886646433,-840.67825308,0.00023259,2]
[363821356,1748886646447,-500.0,0.00023287,7]
[363821359,1748886646456,-176.5287595,0.00023288,2]
[363821361,1748886646466,-158.5152029,0.00023288,2]
[363821363,1748886646476,-572.502888,0.00023288,2]
[363821365,1748886646486,-176.5287595,0.00023288,2]
[363821367,1748886646496,-572.502888,0.00023288,2]
[363821369,1748886646506,-176.5287595,0.00023288,2]
[363821371,1748886646516,-158.5152029,0.00023288,2]
[363821372,1748886646526,-572.502888,0.00023288,2]
[363821374,1748886646536,-158.5152029,0.00023288,2]
[363821375,1748886646546,-158.5152029,0.00023288,2]
[363821376,1748886646556,-572.502888,0.00023288,2]
[363821378,1748886646567,-1040.6975528,0.00023288,2]
[363821380,1748886646577,-158.5152029,0.00023288,2]
[363821382,1748886646587,-158.5152029,0.00023288,2]
[363821384,1748886646596,-158.5152029,0.00023288,2]
[363821386,1748886646606,-176.0744501,0.00023288,2]
[363821388,1748886646616,-153.0,0.00023288,2]
[363821390,1748886646626,-153.0,0.00023288,2]
[363821392,1748886646638,-153.0,0.00023288,2]
[363821395,1748886646652,-153.0,0.00023288,2]
[363821397,1748886646662,-153.0,0.00023288,2]
[363821399,1748886646673,-153.0,0.00023288,2]
[363821401,1748886646683,-153.0,0.00023288,2]
[363821403,1748886646693,-153.0,0.00023288,2]
[363821405,1748886646703,-153.0,0.00023288,2]
[363821407,1748886646713,-153.0,0.00023288,2]
[363821409,1748886646722,-153.0,0.00023288,2]
[363821411,1748886646732,-153.0,0.00023288,2]
[363821413,1748886646741,-153.0,0.00023288,2]
[363821415,1748886646752,-153.0,0.00023288,2]
[363821417,1748886646762,-306.0,0.00023288,2]
[363821418,1748886646771,-153.0,0.00023288,2]
[363821419,1748886646782,-153.0,0.00023288,2]
[363821420,1748886646791,-153.0,0.00023288,2]
[363821421,1748886646801,-153.0,0.00023288,2]
[363821422,1748886646811,-491.2818322,0.00023288,2]
[363821423,1748886646820,-364.4406513,0.00023288,2]
[363821424,1748886646830,-364.4406513,0.00023288,2]
[363821425,1748886646840,-364.4406513,0.00023288,2]
[363821426,1748886646850,-364.4406513,0.00023288,2]
[363821427,1748886646860,-364.4406513,0.00023288,2]
[363821428,1748886646870,-153.0,0.00023288,2]
[363821429,1748886646880,-153.0,0.00023288,2]
[363821431,1748886646890,-153.0,0.00023288,2]
[363821432,1748886646900,-306.0,0.00023288,2]
[363821433,1748886646909,-153.0,0.00023288,2]
[363821434,1748886646920,-153.0,0.00023288,2]
[363821435,1748886646930,-153.0,0.00023288,2]
[363821436,1748886646940,-153.0,0.00023288,2]
[363821437,1748886646949,-153.0,0.00023288,2]
[363821438,1748886646959,-125646.2296886,0.000233,3]
[363821439,1748886646969,-2000.00000099,0.000233,2]
[363821440,1748886646978,-2000.0,0.000233,2]
[363821441,1748886646987,-187045.87064157,0.000233,3]
[363821442,1748886646997,-55735.79431912,0.000233,7]
[363821443,1748886647124,-377.33167231,0.000233,7]
[363821444,1748886647137,-11171.17037169,0.000233,7]
[363821445,1748886647148,-745.10319183,0.000233,7]
[363821446,1748886647219,500.0,0.00024658,120]
[363821447,1748886647275,-963.68897855,0.000189,2]
[363821448,1748886647285,-163.13211168,0.00021543,2]
[363821449,1748886647296,-692.95091461,0.00021633,10]
[363821451,1748886653321,852.0,0.00024658,120]
[363821452,1748886663325,500.0,0.00024658,120]
[363821453,1748886670128,500.0,0.00024658,120]
[363821455,1748886676838,500.0,0.00024658,120]
[363821456,1748886683814,500.0,0.00024658,120]
[363821458,1748886695956,500.0,0.00024658,120]
[363821460,1748886702655,500.0,0.00024658,120]
[363821461,1748886709134,500.0,0.00024658,120]
[363821462,1748886716396,500.0,0.00024658,120]
[363821463,1748886723671,500.0,0.00024658,120]
[363821464,1748886734502,500.0,0.00024658,120]
[363821465,1748886744820,500.0,0.00024658,120]
[363821468,1748886751600,500.0,0.00024658,120]
[363821471,1748886758207,500.0,0.00024658,120]
[363821473,1748886765779,500.0,0.00024658,120]
[363821474,1748886773130,500.0,0.00024658,120]
[363821477,1748886782029,500.0,0.00024658,120]
[363821482,1748886789013,500.0,0.00024658,120]
[363821484,1748886797373,500.0,0.00024658,120]
[363821488,1748886805407,500.0,0.00024658,120]
[363821489,1748886813835,500.0,0.00024658,120]
[363821490,1748886821201,500.0,0.00024658,120]
[363821492,1748886827760,500.0,0.00024658,120]
[363821494,1748886836206,500.0,0.00024658,120]
[363821497,1748886843884,500.0,0.00024658,120]
[363821500,1748886856848,500.0,0.00024658,120]
[363821502,1748886866129,500.0,0.00024658,120]
[363821504,1748886872598,500.0,0.00024658,120]
[363821506,1748886879170,500.0,0.00024658,120]